[Event "Czech Championship 2024"]
[Site "Ostrava"]
[Date "2024.04.30"]
[Round "4.1"]
[White "Hrbek, Stepan"]
[Black "Stocek, Jiri"]
[Result "0-1"]
[ECO "B96"]
[WhiteElo "2407"]
[BlackElo "2531"]
[Annotator "TA"]
[PlyCount "98"]
[EventDate "2024.04.25"]
[EventType "tourn"]
[EventCountry "CZE"]
[SourceTitle "playchess.com"]
[Source "ChessBase"]
[SourceQuality "1"]
[TimeControl "40/5400+30:1800+30"]

{[%evp 17,98,18,20,24,22,19,24,12,23,16,39,15,35,-17,-18,-35,-18,-33,-21,-22,-23,-16,-22,-29,-20,-13,0,-14,0,0,0,0,0,0,0,0,0,0,0,0,0,0,0,0,0,-23,-8,-8,-8,-11,-12,-91,-10,-10,0,0,0,0,0,-246,-137,-232,-223,-1829,-1720,-1821,-1814,-1474,-1032,-6256,-6256,-6256,-5945,-29964,-29962,-29964,-11323,-29970,-29962,-29989,-29987,-29996,-29997]} 1. e4 {[%emt 0:00:05]} c5 {[%emt 0:00:31]} 2. Nf3 {[%emt 0:00:09]} d6 {[%emt 0:00:26]} 3. d4 {[%emt 0:00:08]} cxd4 {[%emt 0:00:05]} 4. Nxd4 {[%emt 0:00:08]} Nf6 {[%emt 0:00:04]} 5. Nc3 {[%emt 0:00:10]} a6 {[%emt 0:00:17]} 6. Bg5 {[%emt 0:00:44]} e6 {[%emt 0:01:35]} 7. f4 {[%emt 0:00:27]} Bd7 {[%emt 0:01:20]} 8. Qd3 {[%emt 0:04:54] B96: Sicilian Najdorf: 6 Bg5 e6 7 f4, lines other than 7...Qb6 and 7...Be7.} h6 {[%emt 0:05:04]} 9. Bh4 {[%emt 0:01:22]} Be7 {[%emt 0:10:15]} 10. O-O-O {[%emt 0:02:26]} g5 {[%emt 0:05:02]} 11. fxg5 {[%emt 0:00:29]} Ng4 {[%emt 0:00:09]} 12. Nf3 {[%emt 0:07:52]} hxg5 {[%emt 0:04:57]} 13. Bg3 {[%emt 0:00:33]} Nc6 {[%emt 0:04:21]} 14. Be2 {[%emt 0:11:26]} (14. Bxd6 $2 Nf2 15. Qd2 Nxh1 $19) 14... Qb6 {[%emt 0:09:03]} 15. Rhf1 $146 {[%emt 0:01:25]} (15. Bxd6 Nf2 16. Qd2 Nxd1 17. Rxd1 Bxd6 18. Qxd6 O-O-O 19. Nxg5 Qf2 $17) (15. Kb1 $14) ({Predecessor:} 15. h3 Qe3+ 16. Kb1 Qxd3 17. cxd3 Nge5 18. d4 Ng6 19. Na4 g4 20. Ng1 gxh3 21. Nb6 {1-0 Stefansson,H (2523)-Low,Z (2437) Marianske Lazne GM-A2 17th 2018 (8)}) 15... Qe3+ $11 {[%emt 0:09:37]} 16. Qd2 {[%emt 0:19:24]} Nce5 {[%emt 0:12:51]} 17. Kb1 {[%emt 0:06:35]} Qxd2 {[%emt 0:01:40]} 18. Rxd2 {[%emt 0:00:06]} Nxf3 {[%emt 0:07:08]} 19. gxf3 {[%emt 0:01:09]} Ne5 {[%emt 0:02:42]} (19... Nxh2 $2 20. Rh1 $18) 20. Nd1 {[%emt 0:04:18]} Rc8 {[%emt 0:03:09]} 21. Ne3 {[%emt 0:02:57]} b5 {[%emt 0:01:16]} 22. b3 {[%emt 0:10:15]} Bc6 {[%emt 0:01:33]} 23. c4 {[%emt 0:01:07]} bxc4 {[%emt 0:02:16]} 24. Nxc4 {[%emt 0:01:54]} Nxc4 {[%emt 0:01:20]} 25. Bxc4 {[%emt 0:00:08]} Bb5 {[%emt 0:00:32]} 26. Rc1 {[%emt 0:03:34]} Bxc4 {[%emt 0:03:14]} 27. Rxc4 {[%emt 0:00:29]} Rxc4 {[%emt 0:00:24]} 28. bxc4 {[%emt 0:00:07]} Rh3 {[%emt 0:00:38]} 29. Kc2 {[%emt 0:04:19]} f5 {[%emt 0:00:23]} 30. Bxd6 {[%emt 0:02:35]} Rxf3 {[%emt 0:03:28]} 31. Bxe7 {[%emt 0:09:00]} Kxe7 {[%emt 0:00:09]} 32. exf5 {[%emt 0:00:01]} exf5 {[%emt 0:02:46]} 33. c5 {[%emt 0:01:08]} Rh3 {[%emt 0:03:00]} 34. Kb2 {[%emt 0:02:07]} (34. a4 $11 {remains equal.}) 34... g4 {[%emt 0:01:11]} (34... Ke6 $17) 35. c6 $11 {[%emt 0:03:54]} Rh6 {[%emt 0:01:44]} 36. Rd5 $1 {[%emt 0:00:29]} f4 {[%emt 0:00:56]} 37. Rd7+ {[%emt 0:00:31]} Ke6 {[%emt 0:00:33]} 38. Rd2 $2 {[%emt 0:00:34]} (38. Kc3 $1 $11 {and White stays safe.}) 38... Rh7 {[%emt 0:00:47]} (38... Rh8 $1 $19 {White must now prevent ...f3.} 39. Rc2 f3) 39. Rd4 {[%emt 0:00:27]} (39. Rc2 $17 {was the only chance.} Kd6 40. Rc4) 39... Ke5 $1 $19 {[%emt 0:00:32]} (39... Rxh2+ 40. Kc3 Rh7 (40... Rxa2 $2 41. c7 $18) 41. Rxf4 $11) 40. Rc4 $2 {[%emt 0:00:31]} (40. Rd7 Rxh2+ 41. Kc3) 40... Rxh2+ $19 {[%emt 0:00:53]} 41. Kc3 {[%emt 0:01:31]} g3 {[%emt 0:19:35]} (41... Rxa2 $2 {too greedy.} 42. c7 Ra1 43. c8=Q $18 (43. c8=R g3 $18)) (41... Rh3+ 42. Kd2 Rh2+ 43. Kd3 $11) 42. c7 {[%emt 0:00:19] [#]} Rh8 $1 {[%emt 0:00:05]} 43. Kd2 {[%emt 0:02:01]} f3 {[%emt 0:06:19]} (43... g2 $2 44. Rc1 $19) 44. Rc1 {[%emt 0:14:18]} Kd4 {[%emt 0:02:22]} ({Not} 44... Rc8 45. Ke3 $15) 45. Rh1 {[%emt 0:01:49]} Rf8 {[%emt 0:02:33]} ({Inferior is} 45... Rxh1 46. c8=Q Rh2+ 47. Kc1 $11) 46. Rh4+ {[%emt 0:02:28] [#]} Ke5 $1 {[%emt 0:00:14]} 47. Rh5+ {[%emt 0:00:24]} Kf4 {[%emt 0:01:56]} 48. Ke1 {[%emt 0:03:30]} Re8+ {[%emt 0:00:17]} 49. Kf1 {[%emt 0:01:38]} g2+ {[%emt 0:00:09]} 0-1

[Event "Czech Championship 2024"]
[Site "Ostrava"]
[Date "2024.04.30"]
[Round "4.2"]
[White "Kraus, Tomas"]
[Black "Jirovsky, Milos"]
[Result "1-0"]
[ECO "C10"]
[WhiteElo "2488"]
[BlackElo "2450"]
[Annotator "RC"]
[PlyCount "95"]
[EventDate "2024.04.25"]
[EventType "tourn"]
[EventCountry "CZE"]
[SourceTitle "playchess.com"]
[Source "ChessBase"]
[SourceQuality "1"]
[TimeControl "40/5400+30:1800+30"]

1. e4 {[%emt 0:00:04]} e6 {[%emt 0:00:12]} 2. d4 {[%emt 0:00:55]} d5 {[%emt 0:00:08]} 3. Nd2 {[%emt 0:01:49]} dxe4 {[%emt 0:00:18]} 4. Nxe4 {[%emt 0:00:18]} Nd7 {[%emt 0:00:06]} 5. Nf3 {[%emt 0:01:08]} Ngf6 {[%emt 0:00:31]} 6. Nxf6+ {[%emt 0:00:21]} Nxf6 {[%emt 0:00:07]} 7. g3 {[%emt 0:00:40]} b6 {[%emt 0:06:28]} 8. Bb5+ {[%emt 0:00:06]} Bd7 {[%emt 0:00:07]} 9. a4 {[%emt 0:00:04]} a6 {[%emt 0:02:16]} 10. Be2 {[%emt 0:06:33]} Bc6 {[%emt 0:00:15]} 11. O-O {[%emt 0:00:51]} Bb7 {[%emt 0:02:54]} 12. Ne5 {[%emt 0:04:51]} Nd7 {[%emt 0:00:43]} 13. Bf3 {[%emt 0:03:20]} Bxf3 {[%emt 0:00:19]} 14. Qxf3 {[%emt 0:00:24]} Nxe5 {[%emt 0:00:07]} 15. dxe5 {[%emt 0:00:04]} Qd5 {[%emt 0:00:08]} 16. Qe2 {[%emt 0:13:49]} Be7 {[%emt 0:02:53]} 17. Rd1 {[%emt 0:13:55]} Qc6 {[%emt 0:01:20]} 18. Qg4 {[%emt 0:01:32]} g5 {[%emt 0:03:47]} 19. Qe2 {[%emt 0:11:33]} h5 {[%emt 0:00:59]} 20. h3 {[%emt 0:11:44]} g4 {[%emt 0:01:19]} 21. h4 {[%emt 0:03:15]} O-O {[%emt 0:01:02]} 22. Bf4 {[%emt 0:05:43]} Rfd8 {[%emt 0:01:05]} 23. b3 {[%emt 0:00:51]} a5 {[%emt 0:01:48]} 24. c4 {[%emt 0:02:50]} Kg7 {[%emt 0:02:11]} 25. Rac1 {[%emt 0:11:39]} Rac8 {[%emt 0:03:10]} 26. Rf1 {[%emt 0:02:13]} Rd4 {[%emt 0:08:37]} 27. f3 {[%emt 0:00:11]} Bc5 {[%emt 0:00:19]} 28. Kh2 {[%emt 0:00:40]} gxf3 {[%emt 0:03:14]} 29. Rxf3 {[%emt 0:00:15]} Qe4 {[%emt 0:06:23]} 30. Qxe4 {[%emt 0:00:04]} Rxe4 {[%emt 0:00:03]} 31. Bg5 {[%emt 0:00:07]} Kg8 {[%emt 0:06:14]} 32. Rcf1 {[%emt 0:01:07]} Rxe5 {[%emt 0:00:32]} 33. Rxf7 {[%emt 0:00:12]} Re2+ {[%emt 0:00:10]} 34. Kh3 {[%emt 0:00:48]} Rf8 {[%emt 0:06:40]} 35. Rxf8+ {[%emt 0:00:05]} Bxf8 {[%emt 0:00:04]} 36. g4 {[%emt 0:02:21]} hxg4+ {[%emt 0:01:16]} 37. Kxg4 {[%emt 0:00:23]} Bd6 {[%emt 0:01:56]} 38. Kh5 {[%emt 0:00:33]} Kg7 {[%emt 0:00:23]} 39. Bh6+ {[%emt 0:00:53]} Kg8 {[%emt 0:04:56]} 40. Kg6 {[%emt 0:00:39]} Rg2+ {[%emt 0:04:01]} 41. Bg5 {[%emt 0:30:47]} Bg3 {[%emt 0:31:27]} 42. Rd1 {[%emt 0:00:00]} Bd6 {[%emt 0:00:00]} 43. Re1 {[%emt 0:00:00]} e5 {[%emt 0:00:00]} 44. Rf1 {[%emt 0:00:00]} Rg3 {[%emt 0:00:00]} 45. Rf7 {[%emt 0:00:00]} e4 {[%emt 0:00:00]} 46. Rg7+ {[%emt 0:00:00]} Kf8 {[%emt 0:00:00]} 47. Rd7 {[%emt 0:00:00]} Be7 {[%emt 0:00:00]} 48. Rxe7 {[%emt 0:00:00]} 1-0

[Event "Czech Championship 2024"]
[Site "Ostrava"]
[Date "2024.04.30"]
[Round "4.3"]
[White "Navara, David"]
[Black "Finek, Vaclav"]
[Result "1-0"]
[ECO "A11"]
[WhiteElo "2678"]
[BlackElo "2431"]
[Annotator "TA"]
[PlyCount "59"]
[EventDate "2024.04.25"]
[EventType "tourn"]
[EventCountry "CZE"]
[SourceTitle "playchess.com"]
[Source "ChessBase"]
[SourceQuality "1"]
[TimeControl "40/5400+30:1800+30"]

{[%evp 14,59,0,0,0,10,9,-1,18,36,56,19,87,87,93,89,86,64,52,59,102,61,143,0,0,0,0,0,552,547,724,637,715,731,710,691,829,899,856,758,945,864,982,981,866,440,524,422]} 1. Nf3 {[%emt 0:00:02]} Nf6 {[%emt 0:00:06]} 2. c4 {[%emt 0:00:04]} c6 {[%emt 0:00:06]} 3. Nc3 {[%emt 0:00:05]} d5 {[%emt 0:00:04]} 4. e3 {[%emt 0:00:05]} e6 {[%emt 0:00:04]} 5. b3 {[%emt 0:00:07]} Bd6 {[%emt 0:00:08]} 6. Bb2 {[%emt 0:00:34]} O-O {[%emt 0:00:15]} 7. Be2 {[%emt 0:00:57]} Nbd7 {[%emt 0:00:26]} 8. Qc2 {[%emt 0:02:38]} Qe7 {[%emt 0:00:27]} 9. Rg1 {[%emt 0:05:59]} e5 {[%emt 0:04:42]} 10. g4 {[%emt 0:04:21][%cal Bg2g4,Bg4g5][%mdl 32]} Nb6 {[%emt 0:14:12] The position is equal.} 11. g5 {[%emt 0:07:19]} Nfd7 {[%emt 0:02:51]} 12. cxd5 {[%emt 0:05:40]} cxd5 {[%emt 0:05:09]} (12... Nxd5 $11 13. Ne4 Ba3) 13. Nb5 $16 {[%emt 0:00:56]} Re8 {[%emt 0:15:29]} 14. a4 {[%emt 0:18:33][%cal Ba2a4,Ba4a5][%mdl 32]} Nf8 {[%emt 0:07:06]} 15. a5 {[%emt 0:01:38]} Nbd7 {[%emt 0:00:23]} 16. h4 {[%emt 0:03:26][%cal Bh2h4,Bh4h5][%mdl 32]} d4 {[%emt 0:07:58]} 17. Rc1 {[%emt 0:18:08] White has more active pieces.} (17. exd4 e4 18. Ne5 (18. Nxd6 $2 exf3 19. Qd3 Qxd6 $19) 18... Nxe5 19. dxe5 Bxe5 20. Bxe5 Qxe5 $17) 17... Nb8 {[%emt 0:13:32]} ({Better is} 17... a6 $14 18. Nxd6 Qxd6) 18. Qxc8 {[%emt 0:12:40]} (18. exd4 $6 exd4 19. Nbxd4 (19. Nfxd4 Nc6 $17) 19... Bd7 $11) (18. h5 $16) 18... Rxc8 $11 {[%emt 0:01:07]} 19. Rxc8 {[%emt 0:00:05] [#] aiming for h5.} Qd7 {[%emt 0:05:31]} 20. Bc4 {[%emt 0:03:16] Some like it hot} g6 $2 {[%emt 0:16:06][%mdl 8192]} (20... Qxc8 21. Nxd6 Qh3 22. Bxf7+ Kh8 23. Bd5 $18) (20... Bb4 $1 $11 21. Nxe5 (21. Rc7 Qf5 $11) 21... Qxc8 22. Bxf7+ Kh8) 21. h5 $18 {[%emt 0:06:54] White is clearly winning.} a6 {[%emt 0:03:36] Black is weak on the dark squares} 22. Nxd6 {[%emt 0:00:59]} Qxd6 {[%emt 0:00:04]} 23. hxg6 {[%emt 0:01:54]} hxg6 {[%emt 0:00:05]} 24. Rh1 {[%emt 0:01:32][%cal Of3e5] [#] Threatens to win with Nxe5!} (24. exd4 Qd7 25. Rxf8+ Kxf8 26. Nxe5 (26. dxe5 $2 {perishes.} Qf5 $19) 26... Qh3 $14 (26... Qf5 $2 27. Bd3 $18)) 24... Qd7 {[%emt 0:01:05]} 25. Nxe5 {[%emt 0:02:51][%cal Bf3e5,Be5f7,Bf7h6,Bh6f5,Bf5d4][%mdl 32]} Qxc8 {[%emt 0:00:07]} 26. Nxf7 {[%emt 0:00:07] Threatening mate with Rh8+.} Qxc4 {[%emt 0:02:17]} 27. Nh6+ {[%emt 0:00:04]} Kh7 {[%emt 0:00:27]} 28. bxc4 {[%emt 0:00:09]} Nc6 {[%emt 0:00:26]} 29. Nf5+ {[%emt 0:02:04]} Kg8 {[%emt 0:00:19]} 30. Nxd4 {[%emt 0:00:10] Weighted Error Value: White=0.33/Black=0.47.  Loses game:     	---       	Black=1      Mistake:       	White=1     	Black=2      Inaccurate:     	White=2     	Black=2      OK:         	White=4     	Black=3      Best:        	White=2     	---} 1-0

[Event "Czech Championship 2024"]
[Site "Ostrava"]
[Date "2024.04.30"]
[Round "4.4"]
[White "Simacek, Pavel"]
[Black "Stalmach, Richard"]
[Result "0-1"]
[ECO "E20"]
[WhiteElo "2446"]
[BlackElo "2446"]
[Annotator "TA"]
[PlyCount "77"]
[EventDate "2024.04.25"]
[EventType "tourn"]
[EventCountry "CZE"]
[SourceTitle "playchess.com"]
[Source "ChessBase"]
[SourceQuality "1"]
[TimeControl "40/5400+30:1800+30"]

{[%evp 9,77,0,21,-18,6,0,0,0,8,0,0,0,6,0,0,-64,-79,-86,-94,-107,-94,-112,-115,-170,-172,-320,-311,-312,-291,-331,-277,-411,-405,-681,-670,-627,-343,-353,-343,-347,-303,-313,-313,-298,-259,-305,-230,-275,-267,-408,-411,-425,-372,-379,-364,-388,-369,-359,-355,-373,-353,-401,-378,-396,-396,-408,-409,-462,-348,-4702]} 1. d4 {[%emt 0:00:05][%cal Bd2d4,Bd4d5][%mdl 32]} Nf6 {[%emt 0:00:10]} 2. c4 {[%emt 0:00:07]} e6 {[%emt 0:00:07]} 3. Nc3 {[%emt 0:00:20]} Bb4 {[%emt 0:00:20]} 4. f3 {[%emt 0:00:30]} c5 {[%emt 0:00:15]} 5. d5 {[%emt 0:00:45]} b5 {[%emt 0:00:30]} 6. e4 $1 {[%emt 0:00:20]} d6 {[%emt 0:00:17]} 7. Bd2 {[%emt 0:01:59]} a6 {[%emt 0:00:37]} 8. a4 {[%emt 0:01:04] The position is equal.} Bxc3 {[%emt 0:06:35]} 9. Bxc3 {[%emt 0:01:16]} b4 {[%emt 0:00:05]} 10. Bd2 {[%emt 0:00:18]} Nbd7 {[%emt 0:00:04]} 11. Be3 {[%emt 0:00:58]} Ne5 {[%emt 0:02:34]} 12. Be2 {[%emt 0:14:23]} (12. dxe6 $11 Bxe6 13. b3) 12... exd5 $1 $15 {[%emt 0:12:10] Black converts the advantage convincingly.} 13. cxd5 {[%emt 0:04:44]} O-O {[%emt 0:00:48]} 14. g3 {[%emt 0:18:01]} Qe7 {[%emt 0:12:54]} 15. Kf2 {[%emt 0:01:14]} Ne8 {[%emt 0:01:31] Black is more active. Excellent horsemanship.} 16. Kg2 {[%emt 0:14:47]} (16. g4 $17) 16... f5 $19 {[%emt 0:01:07]} 17. Nh3 {[%emt 0:00:05]} (17. exf5 $142 Bxf5 18. f4) 17... fxe4 {[%emt 0:01:17]} 18. f4 {[%emt 0:07:22] [#]} Nd3 {[%emt 0:02:22][%mdl 512]} 19. Qb3 {[%emt 0:06:51]} (19. Nf2 Nxb2) 19... Nc7 {[%emt 0:18:03]} 20. Rhd1 {[%emt 0:05:59]} (20. Rhe1 {is a better defense.}) 20... Bb7 {[%emt 0:00:50]} 21. Bxd3 {[%emt 0:00:10]} (21. Kg1 $142) 21... exd3 {[%emt 0:00:05]} 22. Kf2 {[%emt 0:00:03]} Nxd5 {[%emt 0:10:03]} 23. Rxd3 {[%emt 0:03:15]} Kh8 {[%emt 0:01:18]} 24. Rxd5 {[%emt 0:00:57]} Qe6 {[%emt 0:00:36]} 25. Ng5 {[%emt 0:01:28]} Qxd5 {[%emt 0:00:05]} 26. Qxd5 {[%emt 0:00:06]} Bxd5 {[%emt 0:00:03]} 27. Rd1 {[%emt 0:00:05]} Bg8 {[%emt 0:02:36]} 28. Rxd6 {[%emt 0:00:05]} c4 {[%emt 0:00:14]} 29. a5 {[%emt 0:03:48]} (29. Rb6 $142) 29... Rfd8 {[%emt 0:00:50]} 30. Rb6 {[%emt 0:00:40]} Rab8 {[%emt 0:01:18]} 31. Ne4 {[%emt 0:05:58] [#]} c3 $1 {[%emt 0:02:01]} 32. bxc3 {[%emt 0:03:59]} b3 {[%emt 0:00:12] White must now prevent ...Rxb6.} 33. Bc1 {[%emt 0:00:05]} Rxb6 {[%emt 0:01:07]} 34. axb6 {[%emt 0:00:03] KRB-KBN} Rb8 {[%emt 0:00:04]} 35. Ke3 {[%emt 0:00:04]} Rxb6 {[%emt 0:00:08] ...b2 would now be deadly.} 36. Bb2 {[%emt 0:00:03]} a5 {[%emt 0:00:38]} 37. Nd2 {[%emt 0:03:08]} a4 {[%emt 0:00:43]} 38. c4 {[%emt 0:00:34]} a3 {[%emt 0:00:26]} 39. Kd4 $2 {[%emt 0:04:21] Weighted Error Value: White=0.43/Black=0.30.  Mistake:       	White=7     	---        OK:         	White=6     	Black=17     Best:        	White=2     	Black=2      Strong:       	---       	Black=1} (39. Bxa3 b2 40. Bxb2 Rxb2 41. g4) 0-1

[Event "Czech Championship 2024"]
[Site "Ostrava"]
[Date "2024.04.30"]
[Round "4.5"]
[White "Neuman, Petr"]
[Black "Nemec, Jachym"]
[Result "1-0"]
[ECO "B21"]
[WhiteElo "2429"]
[BlackElo "2416"]
[Annotator "TA"]
[PlyCount "75"]
[EventDate "2024.04.25"]
[EventType "tourn"]
[EventCountry "CZE"]
[SourceTitle "playchess.com"]
[Source "ChessBase"]
[SourceQuality "1"]
[TimeControl "40/5400+30:1800+30"]

{[%evp 9,75,0,9,0,22,7,17,26,24,0,0,0,5,-18,-6,-19,-14,-40,-25,-26,-33,-29,-24,-31,-23,-23,-15,-24,-4,-26,-19,-31,-19,-19,-18,-15,-25,0,10,0,0,0,0,0,0,0,44,52,77,79,87,86,78,84,81,83,106,125,234,241,241,241,322,281,1243,1170,29982,1955]} 1. e4 {[%emt 0:00:06]} c5 {[%emt 0:00:43]} 2. Be2 {[%emt 0:00:14]} Nc6 {[%emt 0:02:53]} 3. f4 {[%emt 0:01:17]} d5 {[%emt 0:02:27]} 4. d3 {[%emt 0:01:27]} g6 {[%emt 0:02:20]} 5. Nf3 {[%emt 0:03:17]} Bg7 {[%emt 0:04:26]} 6. c3 {[%emt 0:01:25]} e6 {[%emt 0:04:15]} 7. e5 {[%emt 0:08:49]} Nge7 {[%emt 0:07:14]} 8. d4 {[%emt 0:09:43] The position is equal.} cxd4 {[%emt 0:04:50]} 9. cxd4 {[%emt 0:01:22]} Qb6 {[%emt 0:01:50]} 10. Nc3 {[%emt 0:17:59]} Nf5 {[%emt 0:06:57][%cal Rf5d4]} 11. Na4 {[%emt 0:00:51]} Qb4+ {[%emt 0:02:56]} 12. Bd2 {[%emt 0:01:40]} (12. Kf2 {looks sharper.} b5 13. Nc3 Ncxd4 14. a3) 12... Qe7 {[%emt 0:00:18]} 13. Bb5 {[%emt 0:10:57]} Bd7 {[%emt 0:03:05]} 14. Bxc6 {[%emt 0:03:18]} Bxc6 {[%emt 0:00:14]} 15. O-O {[%emt 0:03:07]} h5 {[%emt 0:04:44]} 16. Nc3 {[%emt 0:06:09]} O-O {[%emt 0:03:58]} 17. Qe2 {[%emt 0:01:13]} Rfc8 {[%emt 0:07:34]} 18. Be1 {[%emt 0:01:10]} b6 {[%emt 0:11:55]} 19. g3 {[%emt 0:01:04]} Bb7 {[%emt 0:01:16]} 20. Bf2 {[%emt 0:10:28]} Rc4 {[%emt 0:01:16]} 21. Rfc1 {[%emt 0:01:03]} Rac8 {[%emt 0:01:29]} 22. h3 {[%emt 0:02:05]} Ba6 {[%emt 0:04:30][%cal Oc4c3]} 23. Qd2 {[%emt 0:00:25]} b5 {[%emt 0:06:27]} 24. a3 {[%emt 0:00:42]} Qb7 {[%emt 0:02:14]} 25. Na2 {[%emt 0:02:15]} Bf8 {[%emt 0:02:49]} 26. Nb4 {[%emt 0:02:10]} Qb6 {[%emt 0:06:57]} 27. Kg2 {[%emt 0:01:20]} Bb7 {[%emt 0:00:42]} 28. g4 {[%emt 0:00:42]} hxg4 {[%emt 0:00:38]} 29. hxg4 {[%emt 0:00:04]} Nh6 {[%emt 0:00:05]} 30. Kg3 {[%emt 0:00:12]} Rxc1 {[%emt 0:01:54]} 31. Rxc1 {[%emt 0:00:05]} Rxc1 {[%emt 0:00:03]} 32. Qxc1 {[%emt 0:00:05]} a5 {[%emt 0:00:48][%cal Ba7a5,Ba5b4][%mdl 32]} 33. Nd3 {[%emt 0:00:05][%cal Bb4d3,Bd3c5,Bc5d7][%mdl 32] Be3 would now be deadly.} b4 {[%emt 0:00:04] [#]} (33... Kg7 $16 34. Be3 Ng8) 34. axb4 $1 $18 {[%emt 0:01:28]} axb4 {[%emt 0:00:19] [#]} 35. Be3 $1 {[%emt 0:00:39]} Ba6 {[%emt 0:02:05]} 36. Nc5 {[%emt 0:01:12]} Be2 $2 {[%emt 0:00:35]} (36... Qa7 37. f5 Nxg4) 37. Nd7 {[%emt 0:00:53] White threatens Qc8 and mate. Excellent horsemanship.} Qb5 {[%emt 0:01:08]} 38. Qc8 {[%emt 0:00:40] Weighted Error Value: White=0.03 (flawless) /Black=0.35.  Mistake:       	---       	Black=2      Inaccurate:     	White=1     	Black=3      OK:         	White=12    	Black=10     Best:        	White=3     	Black=1      Strong:       	White=2     	---} (38. Nf6+ $142 Kg7 39. f5 Ng8 40. Qh1 (40. Qc8 Qd3 $17) 40... Nxf6 41. exf6+ Kxf6 42. Qh4+ Kg7 43. f6+ Kg8 44. Ng5) 1-0

[Event "Czech Championship 2024"]
[Site "Ostrava"]
[Date "2024.05.01"]
[Round "5.1"]
[White "Nemec, Jachym"]
[Black "Hrbek, Stepan"]
[Result "0-1"]
[ECO "A07"]
[WhiteElo "2416"]
[BlackElo "2407"]
[Annotator "TA"]
[PlyCount "100"]
[EventDate "2024.04.25"]
[EventType "tourn"]
[EventCountry "CZE"]
[SourceTitle "playchess.com"]
[Source "ChessBase"]
[SourceQuality "1"]
[TimeControl "40/5400+30:1800+30"]

{[%evp 19,100,0,0,-12,17,6,2,-24,0,0,18,9,9,16,16,2,24,12,16,2,7,10,2,0,0,0,24,24,23,17,23,23,37,34,35,18,14,11,12,0,0,0,6,0,0,0,4,0,20,0,0,0,12,0,0,0,0,-7,-8,-22,-15,-39,-27,-141,0,-304,-332,-497,-385,-464,-482,-493,-453,-498,-487,-461,-479,-479,-453,-437,-416,-705,-698]} 1. Nf3 {[%emt 0:00:34]} d5 {[%emt 0:00:33]} 2. g3 {[%emt 0:00:13]} Nd7 {[%emt 0:03:31]} 3. Bg2 {[%emt 0:01:02]} e5 {[%emt 0:00:22]} 4. d3 {[%emt 0:00:06]} Ngf6 {[%emt 0:00:47]} 5. O-O {[%emt 0:00:19]} Bd6 {[%emt 0:01:12]} 6. Nc3 {[%emt 0:00:33] A07: Réti Opening: New York and Capablanca Systems.} O-O $1 {[%emt 0:05:29][%mdl 4] is now more promising than 6...c6.} 7. e4 {[%emt 0:01:07]} dxe4 {[%emt 0:00:17]} 8. dxe4 {[%emt 0:03:05]} Nc5 {[%emt 0:02:40]} 9. Re1 $146 {[%emt 0:10:29]} ({Predecessor:} 9. Nh4 Re8 10. Nf5 Bxf5 11. exf5 e4 12. Be3 Qe7 13. Qe2 Be5 14. Qc4 b6 15. Bxc5 Qxc5 16. Qxc5 bxc5 17. Nxe4 Nxe4 18. Bxe4 {½-½ Kanmazalp,O (2445)-Kravtsiv,M (2657) TUR-chT Kocaeli 2017 (5.1)}) 9... c6 {[%emt 0:05:53]} 10. Nh4 {[%emt 0:12:25]} Ne6 {[%emt 0:21:25]} 11. Nf5 {[%emt 0:05:20]} Bb4 {[%emt 0:05:41]} 12. Bd2 {[%emt 0:02:56]} Nd4 {[%emt 0:05:28]} 13. Ne3 {[%emt 0:05:33]} Nb5 {[%emt 0:11:29]} 14. Nb1 {[%emt 0:06:42]} (14. Nc4 $5) 14... Bxd2 {[%emt 0:08:44]} 15. Nxd2 {[%emt 0:00:36]} Qe7 {[%emt 0:00:21]} 16. a4 {[%emt 0:02:57]} Nd6 {[%emt 0:00:17]} 17. Qe2 {[%emt 0:03:39]} a5 {[%emt 0:02:03]} 18. Qd3 {[%emt 0:04:11]} Ng4 {[%emt 0:04:55]} 19. Qc3 {[%emt 0:09:16]} Nxe3 {[%emt 0:04:09]} 20. Rxe3 {[%emt 0:00:12]} f6 {[%emt 0:00:09]} 21. Nb3 {[%emt 0:00:33]} b6 {[%emt 0:06:54]} 22. Rd1 {[%emt 0:03:41]} (22. Qxc6 Bd7 23. Qd5+ (23. Qxb6 Nc4 $17) 23... Be6 $17) 22... c5 {[%emt 0:05:17]} 23. Red3 {[%emt 0:05:03]} Nf7 {[%emt 0:00:02]} 24. Nd2 {[%emt 0:05:01]} Be6 {[%emt 0:02:32]} 25. Nc4 {[%emt 0:01:15]} Qc7 {[%emt 0:00:01]} 26. Bf1 {[%emt 0:05:14]} Rad8 {[%emt 0:00:54]} 27. Rxd8 {[%emt 0:06:12]} Rxd8 {[%emt 0:00:05]} 28. Rxd8+ {[%emt 0:00:19]} Qxd8 {[%emt 0:01:48]} 29. Ne3 {[%emt 0:01:48]} Nd6 {[%emt 0:00:55]} 30. f3 {[%emt 0:01:40]} Qc7 {[%emt 0:00:20]} 31. b3 {[%emt 0:00:43]} Qc6 {[%emt 0:00:39]} 32. h4 {[%emt 0:00:33]} Kf8 {[%emt 0:00:34]} 33. Kh2 {[%emt 0:00:27]} g6 {[%emt 0:01:02]} 34. Bh3 {[%emt 0:01:54]} Bf7 {[%emt 0:00:00]} 35. Bf1 {[%emt 0:00:51]} Ke7 {[%emt 0:00:34]} 36. Qd3 {[%emt 0:00:38]} c4 {[%emt 0:00:30]} 37. Qc3 {[%emt 0:00:49]} (37. bxc4 Qxa4 38. Nd5+ Bxd5 39. cxd5 Qb4 $15) 37... Kd7 {[%emt 0:00:47]} 38. bxc4 {[%emt 0:00:35]} Qxa4 {[%emt 0:00:10]} 39. Nd5 {[%emt 0:00:42]} (39. Ng4 {with more complications.} Bxc4 40. Nxf6+ Ke6 41. Nxh7 Bxf1 42. Qc7) 39... Bxd5 {[%emt 0:00:31]} 40. cxd5 {[%emt 0:00:18]} Kd8 {[%emt 0:00:57]} 41. Bd3 {[%emt 0:11:17]} (41. Qd2 $1 $11 {keeps the balance.}) 41... Qb4 {[%emt 0:11:33]} (41... Qd4 $17 42. Qb3 f5 43. exf5 gxf5) 42. Qc6 $2 {[%emt 0:03:45][%mdl 8192] [#]} (42. Qxb4 $1 $11 {and White is okay.} axb4 43. Kg2) 42... Qc5 $1 $19 {[%emt 0:01:43]} 43. Qa8+ {[%emt 0:02:02] [#]} (43. Qxc5 $142 bxc5 44. c4) 43... Qc8 $1 $19 {[%emt 0:00:30]} 44. Qa7 {[%emt 0:05:06]} Qb7 {[%emt 0:00:08]} 45. Qxb7 {[%emt 0:00:08]} Nxb7 {[%emt 0:00:05]} 46. Kg2 {[%emt 0:00:29]} a4 {[%emt 0:09:11]} 47. Kf2 {[%emt 0:02:43]} a3 {[%emt 0:00:21]} 48. Bc4 {[%emt 0:00:04]} Nd6 {[%emt 0:00:03]} 49. Bb3 {[%emt 0:00:34]} Nb5 {[%emt 0:00:12]} 50. Ke3 {[%emt 0:00:07]} (50. Ba2 $142) 50... Nd4 {[%emt 0:02:46]} 0-1